bitfinex/quotes_SOLUSD_20250217
["timestamp","ask_amount","ask_price","bid_price","bid_amount"]
[1739833670318,0.03,179.41,179.38,18.98654853]
[1739833672914,0.03,179.41,179.38,5.5747]
[1739833673107,0.03,179.41,179.37,86.675]
[1739833675106,0.03,179.41,179.37,97.43012175]
[1739833676400,0.03,179.41,179.37,86.675]
[1739833680732,12.33102175,179.4,179.37,81.1]
[1739833681027,10.75512175,179.39,179.36,0.063]
[1739833682513,0.03,179.41,179.38,10.75512175]
[1739833682835,0.03,179.41,179.4,10.75512175]
[1739833683138,0.03,179.41,179.38,10.75512175]
[1739833684243,0.03,179.41,179.39,5.5744]
[1739833684740,11.83008678,179.45,179.39,5.5744]
[1739833684741,0.03,179.45,179.44,13.41184853]
[1739833684914,0.03,179.45,179.44,24.58811413]
[1739833686229,0.03,179.46,179.44,24.58811413]
[1739833686431,0.03,179.46,179.45,29.73947028]
[1739833687927,0.063,179.47,179.45,29.73947028]
[1739833688129,0.063,179.47,179.46,16.74818407]
[1739833690939,0.063,179.5,179.47,13.41184853]
[1739833691117,0.063,179.5,179.48,24.16697028]
[1739833691414,0.063,179.5,179.48,24.58768585]
[1739833692228,0.063,179.5,179.49,13.41184853]
[1739833692409,0.0001,179.52,179.51,20.0]
[1739833692611,0.0001,179.52,179.51,112.27535718]
[1739833692810,0.0001,179.54,179.51,126.26697028]
[1739833693007,0.0001,179.54,179.53,10.75512175]
[1739833694337,0.0001,179.54,179.53,16.32512175]
[1739833697746,0.0001,179.54,179.53,10.75512175]
[1739833697949,0.0001,179.54,179.53,16.32512175]
[1739833703230,0.0001,179.54,179.53,29.73697028]
[1739833703636,0.0001,179.54,179.53,16.32512175]
[1739833706262,0.0001,179.54,179.53,29.73697028]
[1739833706472,0.0001,179.54,179.53,110.83697028]
[1739833708466,0.03,179.59,179.57,20.0]
[1739833708661,0.03,179.59,179.58,10.75512175]
[1739833709161,0.03,179.59,179.58,24.16697028]
[1739833710640,0.03,179.59,179.58,29.73547028]
[1739833714965,1.6856,179.65,179.61,20.0]
[1739833715176,1.6856,179.65,179.61,30.75512175]
[1739833715742,1.6856,179.65,179.62,10.75512175]
[1739833716245,1.6856,179.65,179.63,5.5669]
[1739833719272,1.6856,179.65,179.61,30.75512175]
[1739833719484,1.6856,179.65,179.62,5.5673]
[1739833720174,1.6856,179.65,179.6,10.75512175]
[1739833720486,10.75512175,179.64,179.59,10.75512175]
[1739833720691,10.75512175,179.64,179.58,10.75512175]
[1739833721386,10.75512175,179.64,179.59,10.75512175]
[1739833721691,12.44072175,179.65,179.59,10.75512175]
[1739833722486,1.04387878,179.64,179.59,10.75512175]
[1739833722763,12.44072175,179.65,179.59,10.75512175]
[1739833723102,1.04387173,179.64,179.59,10.75512175]
[1739833723581,1.04387173,179.64,179.6,5.5679]
[1739833726589,11.79899348,179.64,179.59,16.32322175]
[1739833726766,11.79899348,179.64,179.59,5.5681]
[1739833730101,11.82899348,179.64,179.59,5.5681]
[1739833731295,17.39569348,179.64,179.58,16.32362175]
[1739833731598,10.75512175,179.63,179.58,5.5685]
[1739833732189,1.04398807,179.62,179.58,5.5685]
[1739833733083,11.7991124,179.63,179.58,5.5685]
[1739833734004,11.7991124,179.63,179.57,10.75512175]
[1739833734176,10.75512175,179.61,179.56,5.5688]
[1739833734904,11.79918504,179.61,179.56,5.5688]
[1739833735703,11.79918504,179.61,179.56,10.75512175]
[1739833735882,10.75512175,179.61,179.56,10.75512175]
[1739833736797,10.75512175,179.61,179.57,5.5688]
[1739833738573,10.75512175,179.59,179.54,5.6324]
[1739833738899,11.79930175,179.58,179.54,0.063]
[1739833739578,10.75512175,179.57,179.54,0.063]
[1739833739991,10.75512175,179.55,179.54,0.063]
[1739833740391,19.51552175,179.55,179.54,0.063]
[1739833740590,62.53600875,179.55,179.52,0.063]
[1739833740779,36.32512175,179.53,179.52,0.063]
[1739833741602,37.32512175,179.53,179.52,0.063]
[1739833741901,37.32512175,179.53,179.43,5.5731]
[1739833742103,10.75512175,179.48,179.43,5.5731]
[1739833742590,11.799984,179.47,179.44,20.0]
[1739833742792,4.2,179.46,179.44,20.0]
[1739833743293,4.2,179.46,179.44,25.5728]
[1739833743483,1.04485063,179.48,179.44,25.5728]
[1739833745607,10.75512175,179.5,179.44,25.5728]
[1739833745776,10.75512175,179.5,179.44,36.32792175]
[1739833745977,1.04475175,179.49,179.44,36.32792175]
[1739833747206,1.04475175,179.49,179.44,25.5728]
[1739833749087,11.7998735,179.49,179.44,25.5728]
[1739833749710,10.75512175,179.52,179.46,10.75512175]
[1739833749890,1.04478248,179.54,179.49,10.75512175]
[1739833750099,8.80488033,179.55,179.49,10.75512175]
[1739833750689,2.66538033,179.55,179.49,10.75512175]
[1739833750888,13.42050208,179.55,179.49,10.75512175]
[1739833751087,13.42050208,179.55,179.46,10.75512175]
[1739833751088,10.75512175,179.52,179.46,10.75512175]
[1739833751293,10.75512175,179.48,179.42,5.5735]
[1739833751496,10.75512175,179.48,179.42,16.32862175]
[1739833753222,11.79996973,179.49,179.43,10.75512175]
[1739833753916,10.75512175,179.48,179.43,0.063]
[1739833756013,11.79996973,179.49,179.43,10.81812175]
[1739833756223,1.04484798,179.49,179.44,10.75512175]
[1739833757320,11.79996973,179.49,179.43,10.81812175]
[1739833757916,17.37126973,179.49,179.43,0.063]
[1739833758819,11.79996973,179.49,179.43,0.063]
[1739833759033,11.79996973,179.49,179.43,5.6361]
[1739833759199,11.79996973,179.49,179.43,16.39122175]
[1739833759401,1.04484798,179.49,179.43,16.39122175]
[1739833760823,1.04481327,179.51,179.46,10.75512175]
[1739833762018,0.03,179.52,179.5,10.75512175]
[1739833762323,0.03,179.52,179.51,10.75512175]
[1739833762700,0.03,179.52,179.51,16.32582175]
[1739833763720,0.03,179.52,179.51,10.75512175]
[1739833764418,0.03,179.52,179.51,16.32582175]
[1739833765610,0.03,179.52,179.49,10.75512175]
[1739833766934,0.03,179.52,179.49,16.32622175]
[1739833767509,0.03,179.52,179.49,10.75512175]
[1739833768309,0.03,179.52,179.47,10.75512175]
[1739833768921,0.03,179.52,179.47,16.32702175]
[1739833771535,0.03,179.52,179.47,10.75512175]
[1739833771747,10.75512175,179.51,179.45,16.32762175]
[1739833771913,1.04468029,179.5,179.45,10.75512175]
[1739833772237,10.75512175,179.51,179.45,10.75512175]
[1739833773230,16.32582175,179.51,179.45,10.75512175]
[1739833774035,11.79979782,179.5,179.44,16.39092175]
[1739833774344,11.79981464,179.51,179.45,10.75512175]
[1739833774745,11.79981464,179.51,179.49,0.1114]
[1739833775816,10.75512175,179.5,179.49,0.1114]
[1739833777928,10.75512175,179.51,179.49,0.1114]
[1739833778129,11.82977418,179.52,179.49,0.1114]
[1739833778330,0.03,179.52,179.49,0.1114]
[1739833779845,10.78512175,179.52,179.49,0.1114]
[1739833780053,10.75512175,179.5,179.49,0.1114]
[1739833781253,11.7998338,179.5,179.49,0.1114]
[1739833781950,17.3708338,179.5,179.49,0.1114]
[1739833783129,11.7998338,179.5,179.49,0.1114]
[1739833783328,17.3708338,179.5,179.49,0.1114]
[1739833784827,10.75512175,179.5,179.49,0.1114]
[1739833785026,11.79981307,179.5,179.49,0.1114]
[1739833785451,11.79981323,179.5,179.49,0.1114]
[1739833786652,10.75512175,179.5,179.49,0.1114]
[1739833787457,11.79981398,179.5,179.49,0.1114]
[1739833788061,10.75512175,179.5,179.49,0.1114]
[1739833788553,10.78512175,179.52,179.49,0.1114]
[1739833790663,10.78512175,179.52,179.49,0.1744]
[1739833792549,10.75512175,179.51,179.49,0.1744]
[1739833794263,11.82970923,179.52,179.49,0.1744]
[1739833794775,0.03,179.52,179.49,0.1744]
[1739833794948,0.03,179.52,179.49,5.7456]
[1739833797270,0.03,179.52,179.49,0.1744]
[1739833798952,0.03,179.52,179.49,5.7457]
[1739833799569,0.03,179.52,179.49,0.1744]
[1739833800759,0.03,179.52,179.49,5.7456]
[1739833800960,0.03,179.52,179.5,10.75512175]
[1739833801173,0.03,179.52,179.49,16.50072175]
[1739833801368,0.03,179.52,179.49,5.7456]
[1739833801548,0.03,179.52,179.49,0.1744]
[1739833805682,0.03,179.52,179.49,5.7456]
[1739833806380,0.03,179.52,179.49,0.1744]
[1739833809466,10.78512175,179.52,179.49,0.1744]
[1739833810256,0.03,179.52,179.49,0.1744]
[1739833813082,10.78512175,179.52,179.49,0.1744]
[1739833814583,0.03,179.52,179.49,0.1744]
[1739833818481,10.78512175,179.52,179.49,0.1744]
[1739833819785,0.03,179.52,179.49,0.1744]
[1739833820394,10.78512175,179.52,179.49,0.1744]
[1739833824593,10.75512175,179.51,179.49,0.1744]
[1739833824794,11.79968033,179.5,179.49,0.1744]
[1739833826889,17.37068033,179.5,179.49,0.1744]
[1739833829671,11.79968033,179.5,179.49,0.1744]
[1739833830187,17.37068033,179.5,179.49,0.1744]
[1739833857124,11.79968033,179.5,179.49,0.1744]
[1739833857302,16.32582175,179.51,179.49,0.1744]
[1739833857502,1.04468495,179.5,179.49,0.1744]
[1739833857819,16.32582175,179.51,179.49,0.1744]
[1739833858000,1.04468541,179.5,179.49,0.1744]
[1739833859901,11.79980716,179.5,179.49,0.1744]
[1739833860100,17.37080716,179.5,179.49,0.1744]
[1739833862104,11.79980716,179.5,179.49,0.1744]
[1739833863630,1.04468541,179.5,179.49,0.1744]
[1739833863829,0.03,179.52,179.49,0.1744]
[1739833864012,0.03,179.52,179.49,16.50082175]
[1739833864326,10.75512175,179.5,179.49,0.1744]
[1739833866533,16.32612175,179.5,179.49,0.1744]
[1739833870318,17.37116061,179.5,179.49,0.1744]
[1739833872035,10.75512175,179.5,179.49,0.1744]
[1739833872231,10.78512175,179.52,179.49,0.1744]
[1739833872410,1.07462957,179.52,179.49,0.1744]
[1739833873321,10.75512175,179.51,179.49,0.1744]
[1739833873534,11.79982705,179.5,179.49,0.1744]
[1739833874537,10.75512175,179.5,179.49,0.1744]
[1739833875206,10.71989448,179.5,179.49,0.1744]
[1739833875637,11.79980916,179.51,179.49,0.1744]
[1739833875940,10.78512175,179.52,179.49,0.1744]
[1739833876133,11.82973035,179.52,179.49,0.1744]
[1739833876721,10.78512175,179.52,179.49,0.1744]
[1739833877038,0.03,179.52,179.49,0.1744]
[1739833877241,0.03,179.52,179.5,10.75512175]
[1739833877418,0.03,179.52,179.51,10.75512175]
[1739833877940,0.03,179.52,179.51,16.32582175]
[1739833878111,0.03,179.52,179.51,5.5707]
[1739833878311,0.03,179.52,179.49,0.1744]
[1739833879120,11.82968505,179.52,179.49,0.1744]
[1739833879342,10.75512175,179.5,179.49,0.1744]
[1739833880245,10.75512175,179.51,179.49,0.1744]
[1739833881042,0.03,179.52,179.49,5.7456]
[1739833882051,0.03,179.52,179.5,10.75512175]
[1739833882212,0.03,179.52,179.51,30.75512175]
[1739833882726,0.03,179.52,179.51,20.0]
[1739833885138,10.78512175,179.52,179.49,0.1744]
[1739833885319,11.79970149,179.51,179.49,0.1744]
[1739833886748,10.75512175,179.51,179.49,0.1744]
[1739833888146,11.82977033,179.52,179.49,0.1744]
[1739833888735,10.75512175,179.51,179.49,0.1744]
[1739833888936,11.79983124,179.5,179.49,0.1744]
[1739833889131,11.79983389,179.51,179.49,0.1744]
[1739833890350,10.75512175,179.5,179.49,0.1744]
[1739833892557,17.37088959,179.5,179.49,0.1744]
[1739833896849,17.40088959,179.5,179.49,0.1744]
[1739833900839,11.82988959,179.5,179.49,0.1744]
[1739833902045,16.35612175,179.5,179.49,0.1744]
[1739833909461,17.40091007,179.5,179.49,0.1744]
[1739833912965,16.35612175,179.5,179.49,0.1744]
[1739833919268,30.76797028,179.5,179.49,0.0001]
[1739833919470,31.76797028,179.5,179.49,0.0001]
[1739833919973,5.601,179.5,179.49,0.0001]
[1739833920150,16.35612175,179.5,179.49,0.0001]
[1739833920351,29.76797028,179.5,179.49,0.0001]
[1739833920755,30.81303327,179.5,179.49,0.0001]
[1739833923475,20.0,179.47,179.44,0.063]
[1739833923767,10.75512175,179.45,179.44,0.063]
[1739833926481,16.32762175,179.45,179.44,0.063]
[1739833930478,29.73947028,179.45,179.44,0.063]
[1739833931785,2.0,179.44,179.43,0.063]
[1739833931987,30.75512175,179.42,179.41,0.063]
[1739833932284,31.80059341,179.42,179.41,0.063]
[1739833933488,37.37409341,179.42,179.41,0.063]
[1739833934385,50.78594194,179.42,179.41,0.063]
[1739833934883,37.37409341,179.42,179.41,0.063]
[1739833940381,50.78594194,179.42,179.41,0.063]
[1739833941096,10.75512175,179.37,179.36,0.063]
[1739833941667,67.18745728,179.37,179.36,0.063]
[1739833941878,13.41184853,179.36,179.34,0.063]
[1739833942160,24.16697028,179.36,179.34,0.063]
[1739833943387,58.64227028,179.36,179.34,0.063]
[1739833943583,20.0,179.32,179.27,0.063]
[1739833943889,31.80114638,179.32,179.27,0.063]
[1739833944096,10.75512175,179.28,179.27,0.063]
[1739833944283,11.80123861,179.28,179.27,0.063]
[1739833945217,10.75512175,179.28,179.27,0.063]
[1739833945519,60.39969079,179.28,179.27,0.063]
[1739833945903,17.37920379,179.28,179.27,0.063]
[1739833946588,30.79105232,179.28,179.27,0.063]
[1739833949601,17.37920379,179.28,179.27,0.063]
[1739833952423,11.80140379,179.28,179.27,0.063]
[1739833953019,17.37920379,179.28,179.27,0.063]
[1739833955025,11.80140379,179.28,179.27,0.063]
[1739833955222,1.04628204,179.28,179.27,0.063]
[1739833955430,10.75512175,179.29,179.27,0.063]
[1739833955630,1.04599835,179.28,179.27,0.063]
[1739833956436,11.8011201,179.28,179.27,0.063]
[1739833961744,17.3789201,179.28,179.27,0.063]
[1739833962642,73.81125563,179.28,179.27,0.063]
[1739833963910,30.79076863,179.28,179.27,0.063]
[1739833966028,73.81125563,179.28,179.27,0.063]
[1739833967129,30.79076863,179.28,179.27,0.063]
[1739833968743,17.3789201,179.28,179.27,0.063]
[1739833968919,11.8011201,179.28,179.27,0.063]
[1739833970541,1.04599835,179.28,179.27,0.063]
[1739833972942,11.8011201,179.28,179.27,0.063]
[1739833973147,17.3789201,179.28,179.27,0.063]
[1739833973640,60.3994071,179.28,179.27,0.063]
[1739833974738,17.3789201,179.28,179.27,0.063]
[1739833979335,11.8011201,179.28,179.27,0.063]
[1739833979857,1.04599835,179.28,179.27,0.063]
[1739833980153,1.04599299,179.29,179.27,0.063]
[1739833980355,11.80111474,179.29,179.27,0.063]
[1739833981755,10.75512175,179.28,179.27,0.063]
[1739833983854,16.33292175,179.28,179.27,0.063]
[1739833984052,17.37911762,179.28,179.27,0.063]
[1739833984356,143.39960462,179.28,179.27,0.063]
[1739833984557,142.35340875,179.28,179.27,0.063]
[1739833985066,144.90470875,179.28,179.27,0.063]
[1739833987141,144.90470875,179.28,179.27,0.0001]
[1739833987341,159.31655728,179.28,179.27,0.0001]
[1739833988159,76.31655728,179.28,179.27,0.0001]
[1739833988362,77.36296767,179.28,179.27,0.0001]
[1739833990758,76.36296767,179.28,179.27,0.0001]
[1739833990974,17.37933214,179.28,179.27,0.0001]
[1739833992137,60.39981914,179.28,179.27,0.0001]
[1739833992336,61.39981914,179.28,179.27,0.0001]
[1739833993936,10.75512175,179.27,179.23,0.063]
[1739833994141,10.75512175,179.24,179.23,0.063]
[1739833995749,11.80166722,179.24,179.23,0.063]
[1739833996151,17.38076722,179.24,179.23,0.063]
[1739834002977,1.04654547,179.24,179.23,0.063]
[1739834004481,11.80166722,179.24,179.23,0.063]
[1739834005480,17.38076722,179.24,179.23,0.063]
[1739834005688,45.28076722,179.24,179.23,0.063]
[1739834007581,20.0,179.21,179.18,0.063]
[1739834007775,10.75512175,179.19,179.18,0.063]
[1739834008862,16.33572175,179.19,179.18,0.063]
[1739834017785,99.33572175,179.19,179.18,0.063]
[1739834019165,100.38244772,179.19,179.18,0.063]
[1739834034506,1.0,179.15,179.06,1.5948]
[1739834034683,10.75512175,179.1,179.05,6.2474]
[1739834035599,10.75512175,179.1,179.05,0.063]
[1739834036189,16.33852175,179.1,179.05,0.063]
[1739834036580,10.75512175,179.11,179.05,10.81812175]
[1739834036899,11.80210451,179.1,179.05,0.063]
[1739834038811,17.38550451,179.1,179.05,0.063]
[1739834045808,88.30599151,179.1,179.05,0.063]
[1739834046193,89.30599151,179.1,179.05,0.063]
[1739834046399,10.75512175,179.09,179.05,0.063]
[1739834047190,16.33882175,179.09,179.05,0.063]
[1739834052490,6.63081368,179.09,179.05,0.063]
[1739834053215,17.38593543,179.09,179.05,0.063]
[1739834053386,1.04711368,179.09,179.05,0.063]
[1739834053585,11.80223543,179.09,179.05,0.063]
[1739834054031,17.38593543,179.09,179.05,0.063]
[1739834057318,6.63081368,179.09,179.05,0.063]
[1739834057626,17.38593543,179.09,179.05,0.063]
[1739834060338,17.38593543,179.09,179.08,0.0001]
[1739834060918,45.28593543,179.09,179.08,0.0001]
[1739834062415,46.28593543,179.09,179.08,0.0001]
[1739834065429,18.38593543,179.09,179.08,0.0001]
[1739834066327,18.44893543,179.09,179.08,0.0001]
[1739834068319,17.44893543,179.09,179.08,0.0001]
[1739834068624,18.44893543,179.09,179.08,0.0001]
[1739834069438,17.44893543,179.09,179.08,0.0001]
[1739834070024,18.44893543,179.09,179.08,0.0001]
[1739834070525,17.44893543,179.09,179.08,0.0001]
[1739834071414,18.44893543,179.09,179.08,0.0001]
[1739834071617,17.44893543,179.09,179.08,0.0001]
[1739834077238,45.34893543,179.09,179.08,0.0001]
[1739834089351,45.34893543,179.09,179.05,0.02971983]
[1739834089531,16.33922175,179.08,179.05,0.02971983]
[1739834089733,1.04722553,179.07,179.05,0.02971983]
[1739834091636,11.80234728,179.07,179.05,0.02971983]
[1739834092248,1.04722553,179.07,179.05,0.02971983]
[1739834099260,11.80234728,179.07,179.05,0.02971983]
[1739834101074,17.38684728,179.07,179.05,0.02971983]
[1739834102067,1.04722553,179.07,179.05,0.02971983]
[1739834102940,6.63162553,179.07,179.05,0.02971983]
[1739834103159,10.75512175,179.06,179.05,0.02971983]
[1739834103548,38.65512175,179.06,179.05,0.02971983]
[1739834104136,44.23982175,179.06,179.05,0.02971983]
[1739834106872,16.33982175,179.06,179.05,0.02971983]
[1739834108166,20.0,179.03,179.01,0.063]
[1739834108369,11.80276514,179.02,179.01,0.063]
[1739834108939,1.04764339,179.02,179.01,0.063]
[1739834109172,38.65512175,179.03,179.01,0.063]
[1739834109567,1.04748516,179.02,179.01,0.063]
[1739834109773,11.80260691,179.02,179.01,0.063]
[1739834109946,17.38850691,179.02,179.01,0.063]
[1739834111080,28.94750035,179.03,179.01,0.063]
[1739834111367,45.2883221,179.03,179.01,0.063]
[1739834111977,10.75512175,179.02,179.01,0.063]
[1739834112173,16.34102175,179.02,179.01,0.063]
[1739834113246,17.38873196,179.02,179.01,0.063]
[1739834114069,16.34102175,179.02,179.01,0.063]
[1739834119169,17.38872999,179.02,179.01,0.063]
[1739834119479,61.40921699,179.02,179.01,0.063]
[1739834119651,14.41184853,179.01,179.0,0.0001]
[1739834119850,68.18745728,179.01,179.0,0.0001]
[1739834120856,73.77365728,179.01,179.0,0.0001]
[1739834121097,74.82161771,179.01,179.0,0.0001]
[1739834121452,73.82161771,179.01,179.0,0.0001]
[1739834121763,74.82161771,179.01,179.0,0.0001]
[1739834125361,20.0,178.97,178.92,0.063]
[1739834125567,10.75512175,178.93,178.92,0.063]
[1739834126960,16.34382175,178.93,178.92,0.063]
[1739834127685,17.39197414,178.93,178.92,0.063]
[1739834127975,16.34382175,178.93,178.92,0.063]
[1739834129050,16.34322175,178.95,178.92,0.063]
[1739834129251,1.04801671,178.94,178.92,0.063]
[1739834129677,11.80313846,178.94,178.92,0.063]
[1739834130678,1.04801671,178.94,178.92,0.063]
[1739834131982,16.34292175,178.96,178.92,0.063]
[1739834132157,1.04790147,178.95,178.92,0.063]
[1739834132688,17.3906416,178.97,178.92,0.063]
[1739834132866,1.04791985,178.97,178.92,10.81812175]
[1739834133293,6.63541985,178.97,178.92,10.81812175]
[1739834133459,6.63541985,178.97,178.92,0.063]
[1739834133460,17.3905416,178.97,178.92,0.063]
[1739834133987,10.75512175,178.96,178.92,0.063]
[1739834134289,11.8030963,178.95,178.92,0.063]
[1739834134862,17.3913963,178.95,178.92,0.063]
[1739834137196,6.63627455,178.95,178.92,0.063]
[1739834137890,10.75512175,178.94,178.92,0.063]
[1739834138097,11.80316574,178.93,178.92,0.063]
[1739834138269,39.70316574,178.93,178.92,0.063]
[1739834139996,45.29186574,178.93,178.92,0.063]
[1739834140293,28.94804399,178.93,178.92,0.063]
[1739834140479,27.9,178.93,178.92,0.063]
[1739834140881,1.04796006,178.94,178.92,0.063]
[1739834141096,1.04794552,178.95,178.92,0.063]
[1739834141879,6.63624552,178.95,178.92,0.063]
[1739834142194,17.39136727,178.95,178.92,0.063]
[1739834146861,11.80306727,178.95,178.92,0.063]
[1739834147067,28.9479576,178.96,178.92,0.063]
[1739834147597,28.9479576,178.96,178.92,10.81812175]
[1739834147903,27.9,178.96,178.92,10.81812175]
[1739834148084,5.5869,178.99,178.94,10.75512175]
[1739834148395,6.63460642,178.99,178.95,10.75512175]
[1739834148599,6.63460642,178.99,178.94,10.75512175]
[1739834152098,17.38972817,178.99,178.94,10.75512175]
[1739834154196,17.38972817,178.99,178.93,16.34382175]
[1739834154396,6.63460642,178.99,178.94,10.75512175]
[1739834155106,1.04770642,178.99,178.95,10.75512175]
[1739834155407,6.69741928,179.0,178.95,10.75512175]
[1739834157707,1.11071928,179.0,178.95,10.75512175]
[1739834157880,1.11071928,179.0,178.95,16.34322175]
[1739834158496,6.69731928,179.0,178.95,16.34322175]
[1739834158876,1.11071928,179.0,178.95,16.34322175]
[1739834159277,6.69731928,179.0,178.95,10.75512175]
[1739834163105,17.45244103,179.0,178.94,10.75512175]
[1739834163398,6.69731928,179.0,178.94,10.75512175]
[1739834163611,6.69731928,179.0,178.95,10.75512175]
[1739834166891,0.063,179.0,178.97,10.75512175]
[1739834167211,0.063,179.0,178.98,10.75512175]
[1739834170319,0.063,179.0,178.99,10.75512175]
[1739834172612,0.063,179.0,178.98,30.75512175]
[1739834172785,0.063,179.0,178.96,10.75512175]
[1739834174317,0.063,179.0,178.98,10.75512175]
[1739834174496,0.063,179.0,178.96,5.5877]
[1739834174813,0.063,179.0,178.99,10.75512175]
[1739834175216,0.063,179.0,178.99,16.34202175]
[1739834175715,0.063,179.0,178.96,5.5875]
[1739834176019,0.063,179.0,178.96,10.75512175]
[1739834176192,0.063,179.0,178.96,30.75512175]
[1739834177623,0.063,179.0,178.95,10.78512175]
[1739834177624,1.04753221,178.99,178.95,10.78512175]
[1739834178619,1.11067977,179.0,178.95,10.78512175]
[1739834178927,5.5869,178.99,178.95,0.03]
[1739834179116,1.04773078,178.98,178.95,0.03]
[1739834179500,16.34202175,178.99,178.95,0.03]
[1739834179715,5.5869,178.99,178.95,0.03]
[1739834180320,6.63492051,178.98,178.95,0.03]
[1739834180524,10.75512175,178.96,178.95,0.03]
[1739834181024,11.80310615,178.96,178.95,0.03]
[1739834182416,17.39090615,178.96,178.95,0.03]
[1739834190940,84.0,178.95,178.92,0.063]
[1739834191233,1.5261,178.92,178.91,0.03]
[1739834191405,56.35008487,178.92,178.91,0.03]
[1739834192127,14.41184853,178.91,178.83,0.06243181]
[1739834192323,12.28122175,178.84,178.83,0.06243181]
[1739834192528,11.80385915,178.84,178.83,0.06243181]
[1739834193127,10.75512175,178.85,178.83,0.06243181]
[1739834193434,1.04853434,178.84,178.83,0.06243181]
[1739834193639,11.80365609,178.84,178.83,0.06243181]
[1739834194534,17.39515609,178.84,178.83,0.06243181]
[1739834196711,17.39515609,178.84,178.83,0.09243181]
[1739834198442,1.0,178.81,178.77,0.03]
[1739834198612,10.75512175,178.78,178.77,0.03]
[1739834198810,11.80424101,178.78,178.77,0.03]
[1739834199350,17.39764101,178.78,178.77,0.03]
[1739834201216,11.80424101,178.78,178.77,0.03]
[1739834201443,10.75512175,178.78,178.77,0.03]
[1739834202123,11.80403152,178.8,178.77,0.03]
[1739834202820,11.80394378,178.82,178.77,0.03]
[1739834203024,17.39544252,178.84,178.78,10.75512175]
[1739834203540,11.80384252,178.84,178.78,10.75512175]
[1739834204326,1.04872077,178.84,178.79,10.75512175]
[1739834204641,88.7,178.85,178.81,10.75512175]
[1739834204813,88.7,178.85,178.82,10.75512175]
[1739834205351,88.7,178.85,178.81,10.75512175]
[1739834205722,88.7,178.85,178.8,5.5928]
[1739834206044,88.7,178.85,178.8,16.34792175]
[1739834207857,88.7,178.85,178.81,10.75512175]
[1739834208028,88.7,178.85,178.8,5.5928]
[1739834208029,88.7,178.85,178.82,10.75512175]
[1739834208229,88.7,178.85,178.81,10.75512175]
[1739834209043,1.04841169,178.88,178.81,10.75512175]
[1739834209044,38.65512175,178.9,178.84,10.75512175]
[1739834209238,11.86633427,178.91,178.85,10.75512175]
[1739834209562,11.86633427,178.91,178.86,16.34602175]
[1739834209563,0.063,178.91,178.86,16.34602175]
[1739834210358,10.81812175,178.91,178.86,5.0909]
[1739834213733,10.81812175,178.91,178.87,10.75512175]
[1739834213734,0.063,178.91,178.87,10.75512175]
[1739834216563,0.063,178.91,178.86,15.84602175]
[1739834218744,10.81812175,178.91,178.86,15.84602175]
[1739834219570,10.81812175,178.91,178.86,5.0909]
[1739834221071,0.063,178.91,178.87,10.75512175]
[1739834221766,0.063,178.91,178.86,15.84602175]
[1739834222559,0.063,178.91,178.87,10.75512175]
[1739834223266,0.063,178.91,178.86,10.75512175]
[1739834224070,0.063,178.91,178.87,5.5906]
[1739834230673,10.81812175,178.91,178.87,5.5906]
[1739834231254,0.063,178.91,178.87,5.5906]
[1739834234662,10.81812175,178.91,178.87,5.5906]
[1739834243555,10.75512175,178.89,178.86,0.03]
[1739834243883,10.75512175,178.87,178.86,0.03]
[1739834244062,10.75512175,178.87,178.86,20.03]
[1739834244259,16.34572175,178.87,178.86,0.03]
[1739834246367,17.39435158,178.87,178.86,0.03]
[1739834247560,110.9,178.86,178.8,0.03]
[1739834247760,10.75512175,178.81,178.8,0.03]
[1739834247987,11.80401183,178.81,178.8,0.03]
[1739834249478,17.39651183,178.81,178.8,0.03]
[1739834250077,31.80836036,178.81,178.8,0.03]
[1739834250394,1.5518,178.8,178.77,0.03]
[1739834250570,10.75512175,178.78,178.77,0.03]
[1739834251698,17.39760537,178.78,178.77,0.03]